[Event "13th Agzamov Memorial 2019"]
[Site "Tashkent"]
[Date "2019.03.14"]
[Round "4.8"]
[White "Kotanjian, Tigran"]
[Black "Turaev, Hairilla"]
[Result "0-1"]
[ECO "D35"]
[WhiteElo "2482"]
[BlackElo "2316"]
[Annotator "ChessBase"]
[PlyCount "50"]
[EventDate "2019.03.12"]
[EventType "swiss"]
[EventCountry "UZB"]
[SourceTitle "playchess.com"]
[Source "ChessBase"]
[SourceQuality "1"]
[TimeControl "5400+30"]

1. d4 {[%emt 0:00:00]} Nf6 {[%emt 0:00:03]} 2. c4 {[%emt 0:00:00]} e6 {[%emt 0:00:59]} 3. Nc3 {[%emt 0:00:00]} d5 {[%emt 0:00:18]} 4. cxd5 {[%emt 0:00:00]} exd5 {[%emt 0:00:27]} 5. Bg5 {[%emt 0:00:08]} Nbd7 {[%emt 0:00:22]} 6. e3 {[%emt 0:00:08]} Be7 {[%emt 0:00:29]} 7. Nf3 {[%emt 0:00:14]} c6 {[%emt 0:00:26]} 8. Bd3 {[%emt 0:00:09]} Ne4 {[%emt 0:02:01]} 9. Bf4 {[%emt 0:12:18]} f5 {[%emt 0:03:29]} 10. O-O {[%emt 0:02:28]} O-O {[%emt 0:00:11]} 11. Qc2 {[%emt 0:00:53]} g5 {[%emt 0:01:20]} 12. Be5 {[%emt 0:00:22]} g4 {[%emt 0:00:26]} 13. Ne1 {[%emt 0:03:52]} Nxe5 {[%emt 0:01:34]} 14. dxe5 {[%emt 0:00:05]} Bg5 {[%emt 0:00:25]} 15. Nd1 {[%emt 0:05:44]} Bh6 {[%emt 0:02:32]} 16. f3 {[%emt 0:06:37]} gxf3 {[%emt 0:01:57]} 17. gxf3 {[%emt 0:00:11]} Kh8 {[%emt 0:12:24]} 18. fxe4 {[%emt 0:01:03]} Rg8+ {[%emt 0:00:17]} 19. Ng2 {[%emt 0:07:34]} fxe4 {[%emt 0:01:40]} 20. Be2 {[%emt 0:00:30]} Bh3 {[%emt 0:01:06]} 21. Rf2 {[%emt 0:04:09]} Bxg2 {[%emt 0:00:20]} 22. Rxg2 {[%emt 0:05:17]} Rxg2+ {[%emt 0:01:35]} 23. Kxg2 {[%emt 0:00:04]} Qg5+ {[%emt 0:00:14]} 24. Kf1 {[%emt 0:00:07]} Qh4 {[%emt 0:03:56]} 25. h3 {[%emt 0:01:36]} Qg3 {[%emt 0:00:56]} 0-1

[Event "13th Agzamov Memorial 2019"]
[Site "Tashkent"]
[Date "2019.03.16"]
[Round "7.10"]
[White "Karimov, Alisher"]
[Black "Korneev, Oleg"]
[Result "0-1"]
[ECO "D10"]
[WhiteElo "2263"]
[BlackElo "2559"]
[Annotator "RC"]
[PlyCount "136"]
[EventDate "2019.03.12"]
[EventType "swiss"]
[EventCountry "UZB"]
[SourceTitle "playchess.com"]
[Source "ChessBase"]
[SourceQuality "1"]
[TimeControl "5400+30"]

1. d4 {[%emt 0:00:00]} d5 {[%emt 0:00:00]} 2. c4 {[%emt 0:00:00]} c6 {[%emt 0:00:00]} 3. Nc3 {[%emt 0:00:18]} dxc4 {[%emt 0:00:56]} 4. a4 {[%emt 0:00:57]} e5 {[%emt 0:09:00]} 5. Nf3 {[%emt 0:02:18]} exd4 {[%emt 0:01:06]} 6. Qxd4 {[%emt 0:00:30]} Qxd4 {[%emt 0:00:29]} 7. Nxd4 {[%emt 0:00:02]} Bc5 {[%emt 0:03:17]} 8. Nf3 {[%emt 0:04:39]} Na6 {[%emt 0:02:29]} 9. Bg5 {[%emt 0:02:41]} h6 {[%emt 0:10:16]} 10. Bh4 {[%emt 0:00:45]} Be6 {[%emt 0:08:39]} 11. O-O-O {[%emt 0:02:18]} Ne7 {[%emt 0:09:38]} 12. e4 {[%emt 0:02:35]} Nb4 {[%emt 0:08:18]} 13. Bg3 {[%emt 0:32:28]} f6 {[%emt 0:10:25]} 14. Be2 {[%emt 0:24:19]} O-O {[%emt 0:02:09]} 15. Bd6 {[%emt 0:01:23]} Na6 {[%emt 0:06:10]} 16. Bxe7 {[%emt 0:03:43]} Bxe7 {[%emt 0:00:13]} 17. Nd2 {[%emt 0:00:06]} Bb4 {[%emt 0:06:45]} 18. Nxc4 {[%emt 0:08:08]} Bxc3 {[%emt 0:00:11]} 19. bxc3 {[%emt 0:00:19]} Nc5 {[%emt 0:00:04]} 20. Rd6 {[%emt 0:01:25]} Rfd8 {[%emt 0:05:55]} 21. Rhd1 {[%emt 0:02:29]} Rxd6 {[%emt 0:00:26]} 22. Rxd6 {[%emt 0:03:54]} Kf7 {[%emt 0:03:22]} 23. Kc2 {[%emt 0:04:49]} Nxe4 {[%emt 0:02:08]} 24. Rd4 {[%emt 0:00:26]} Nc5 {[%emt 0:00:31]} 25. Bg4 {[%emt 0:01:18]} Bxg4 {[%emt 0:02:35]} 26. Rxg4 {[%emt 0:00:01]} Rd8 {[%emt 0:00:12]} 27. a5 {[%emt 0:00:30]} g5 {[%emt 0:01:58]} 28. Ne3 {[%emt 0:00:14]} b5 {[%emt 0:00:46]} 29. h4 {[%emt 0:01:14]} Nb7 {[%emt 0:02:34]} 30. h5 {[%emt 0:00:08]} Nxa5 {[%emt 0:00:14]} 31. Re4 {[%emt 0:00:10]} Nc4 {[%emt 0:04:09]} 32. Nxc4 {[%emt 0:01:10]} bxc4 {[%emt 0:00:01]} 33. Rxc4 {[%emt 0:00:06]} Rd6 {[%emt 0:00:02]} 34. Ra4 {[%emt 0:00:17]} Rd7 {[%emt 0:00:07]} 35. Ra6 {[%emt 0:00:10]} Rc7 {[%emt 0:00:08]} 36. Kd3 {[%emt 0:00:07]} Ke6 {[%emt 0:00:34]} 37. Ke4 {[%emt 0:00:18]} f5+ {[%emt 0:00:27]} 38. Kd4 {[%emt 0:00:01]} Kd6 {[%emt 0:00:20]} 39. c4 {[%emt 0:00:16]} f4 {[%emt 0:01:23]} 40. f3 {[%emt 0:00:27]} Rd7 {[%emt 0:01:02]} 41. c5+ {[%emt 0:01:19]} Ke6+ {[%emt 0:00:23]} 42. Ke4 {[%emt 0:00:35]} Rc7 {[%emt 0:00:06]} 43. Ra2 {[%emt 0:00:16]} Rb7 {[%emt 0:00:16]} 44. Ra4 {[%emt 0:00:43]} a5 {[%emt 0:01:24]} 45. Rxa5 {[%emt 0:00:19]} Rb4+ {[%emt 0:00:02]} 46. Kd3 {[%emt 0:00:24]} Kd5 {[%emt 0:00:09]} 47. Ra8 {[%emt 0:00:23]} Rb3+ {[%emt 0:00:43]} 48. Kc2 {[%emt 0:00:01]} Re3 {[%emt 0:00:11]} 49. Rf8 {[%emt 0:00:52]} Re2+ {[%emt 0:00:23]} 50. Kd3 {[%emt 0:00:15]} Rxg2 {[%emt 0:00:04]} 51. Rf6 {[%emt 0:00:14]} Rf2 {[%emt 0:00:29]} 52. Rd6+ {[%emt 0:00:36]} Kxc5 {[%emt 0:00:11]} 53. Rxh6 {[%emt 0:00:05]} Rxf3+ {[%emt 0:00:49]} 54. Ke4 {[%emt 0:00:01]} Rg3 {[%emt 0:01:45]} 55. Rg6 {[%emt 0:00:14]} f3 {[%emt 0:00:21]} 56. Rf6 {[%emt 0:02:58]} Rh3 {[%emt 0:01:01]} 57. Rf5+ {[%emt 0:00:15]} Kc4 {[%emt 0:00:32]} 58. Rxg5 {[%emt 0:00:53]} f2 {[%emt 0:00:09]} 59. Rf5 {[%emt 0:00:04]} Rxh5 {[%emt 0:00:13]} 60. Rxf2 {[%emt 0:00:09]} Rh3 {[%emt 0:01:05]} 61. Ke5 {[%emt 0:01:48]} c5 {[%emt 0:00:12]} 62. Rf1 {[%emt 0:00:59]} Rd3 {[%emt 0:00:56]} 63. Rc1+ {[%emt 0:00:23]} Kb4 {[%emt 0:00:15]} 64. Rb1+ {[%emt 0:00:19]} Rb3 {[%emt 0:00:08]} 65. Rd1 {[%emt 0:00:21]} c4 {[%emt 0:00:20]} 66. Ke4 {[%emt 0:00:54]} Rb2 {[%emt 0:00:28]} 67. Rd8 {[%emt 0:00:30]} Re2+ {[%emt 0:00:08]} 68. Kf3 {[%emt 0:00:15]} Re1 {[%emt 0:00:15]} 0-1

[Event "13th Agzamov Memorial 2019"]
[Site "Tashkent"]
[Date "2019.03.17"]
[Round "8.4"]
[White "Abdisalimov, Abdimalik"]
[Black "Kazakovskiy, Valeriy"]
[Result "0-1"]
[ECO "C26"]
[WhiteElo "2375"]
[BlackElo "2456"]
[Annotator "RC"]
[PlyCount "94"]
[EventDate "2019.03.12"]
[EventType "swiss"]
[EventCountry "UZB"]
[SourceTitle "playchess.com"]
[Source "ChessBase"]
[SourceQuality "1"]
[TimeControl "5400+30"]

1. e4 {[%emt 0:00:00]} e5 {[%emt 0:00:01]} 2. Nc3 {[%emt 0:11:39]} Nf6 {[%emt 0:01:03]} 3. g3 {[%emt 0:01:08]} d5 {[%emt 0:00:14]} 4. exd5 {[%emt 0:00:07]} Nxd5 {[%emt 0:00:09]} 5. Bg2 {[%emt 0:00:05]} Nxc3 {[%emt 0:00:14]} 6. bxc3 {[%emt 0:00:05]} Nc6 {[%emt 0:00:10]} 7. d3 {[%emt 0:00:13]} Bc5 {[%emt 0:00:44]} 8. Nf3 {[%emt 0:01:15]} O-O {[%emt 0:00:27]} 9. O-O {[%emt 0:00:19]} Qf6 {[%emt 0:00:16]} 10. Nd2 {[%emt 0:00:48]} Qg6 {[%emt 0:01:16]} 11. Nb3 {[%emt 0:01:04]} Bd6 {[%emt 0:06:43]} 12. Be3 {[%emt 0:05:48]} Bg4 {[%emt 0:01:45]} 13. Qb1 {[%emt 0:05:47]} Rfe8 {[%emt 0:08:02]} 14. Re1 {[%emt 0:03:46]} Bf8 {[%emt 0:02:20]} 15. a4 {[%emt 0:09:35]} Rad8 {[%emt 0:03:14]} 16. Bc5 {[%emt 0:02:56]} b6 {[%emt 0:12:05]} 17. Bxf8 {[%emt 0:00:37]} Kxf8 {[%emt 0:00:22]} 18. a5 {[%emt 0:00:26]} Bd7 {[%emt 0:06:14]} 19. axb6 {[%emt 0:08:58]} cxb6 {[%emt 0:03:28]} 20. Qb2 {[%emt 0:01:13]} Kg8 {[%emt 0:04:40]} 21. c4 {[%emt 0:02:37]} Qd6 {[%emt 0:01:38]} 22. Ra3 {[%emt 0:13:47]} Qc7 {[%emt 0:03:22]} 23. Rea1 {[%emt 0:00:06]} Rb8 {[%emt 0:04:07]} 24. Qc1 {[%emt 0:06:50]} a5 {[%emt 0:01:38]} 25. c5 {[%emt 0:03:35]} b5 {[%emt 0:04:21]} 26. Rxa5 {[%emt 0:13:31]} Nxa5 {[%emt 0:00:51]} 27. Rxa5 {[%emt 0:00:02]} Bc6 {[%emt 0:02:47]} 28. Qa1 {[%emt 0:02:29]} Bxg2 {[%emt 0:04:47]} 29. Kxg2 {[%emt 0:00:01]} Qc6+ {[%emt 0:01:50]} 30. f3 {[%emt 0:00:15]} Ra8 {[%emt 0:00:54]} 31. Qc3 {[%emt 0:00:31]} Rxa5 {[%emt 0:01:26]} 32. Nxa5 {[%emt 0:00:01]} Qd5 {[%emt 0:00:48]} 33. Qb4 {[%emt 0:03:01]} Rc8 {[%emt 0:01:15]} 34. c6 {[%emt 0:01:26]} Qa2 {[%emt 0:03:16]} 35. Qxb5 {[%emt 0:01:06]} Qxc2+ {[%emt 0:00:09]} 36. Kh3 {[%emt 0:00:01]} Qa2 {[%emt 0:02:13]} 37. Nc4 {[%emt 0:00:16]} Qa7 {[%emt 0:05:51]} 38. Qxe5 {[%emt 0:00:42]} Qc7 {[%emt 0:03:01]} 39. Qf5 {[%emt 0:02:12]} Qxc6 {[%emt 0:01:07]} 40. Ne5 {[%emt 0:00:01]} Qh6+ {[%emt 0:01:18]} 41. Kg4 {[%emt 0:00:01]} Rf8 {[%emt 0:00:40]} 42. h4 {[%emt 0:00:51]} Qd6 {[%emt 0:00:20]} 43. h5 {[%emt 0:00:36]} g6 {[%emt 0:01:00]} 44. hxg6 {[%emt 0:00:05]} hxg6 {[%emt 0:00:56]} 45. Qf4 {[%emt 0:00:00]} Qe6+ {[%emt 0:00:23]} 46. Kh4 {[%emt 0:00:07]} Kg7 {[%emt 0:00:08]} 47. g4 {[%emt 0:00:01]} f6 {[%emt 0:00:09]} 0-1

[Event "13th Agzamov Memorial 2019"]
[Site "Tashkent"]
[Date "2019.03.17"]
[Round "8.11"]
[White "Kasimov, Ali"]
[Black "Papin, Vasily"]
[Result "1/2-1/2"]
[ECO "B30"]
[WhiteElo "2167"]
[BlackElo "2496"]
[Annotator "ChessBase"]
[PlyCount "84"]
[EventDate "2019.03.12"]
[EventType "swiss"]
[EventCountry "UZB"]
[SourceTitle "playchess.com"]
[Source "ChessBase"]
[SourceQuality "1"]
[TimeControl "5400+30"]

1. e4 {[%emt 0:00:00]} c5 {[%emt 0:00:00]} 2. Nf3 {[%emt 0:00:29]} Nc6 {[%emt 0:00:00]} 3. Bb5 {[%emt 0:00:47]} Na5 {[%emt 0:00:00]} 4. c3 {[%emt 0:01:36]} a6 {[%emt 0:00:03]} 5. Ba4 {[%emt 0:01:06]} e6 {[%emt 0:00:05]} 6. O-O {[%emt 0:02:50]} b5 {[%emt 0:00:09]} 7. Bc2 {[%emt 0:00:08]} Bb7 {[%emt 0:00:03]} 8. d4 {[%emt 0:01:28]} cxd4 {[%emt 0:00:30]} 9. cxd4 {[%emt 0:00:36]} Rc8 {[%emt 0:01:06]} 10. Nc3 {[%emt 0:05:52]} Qc7 {[%emt 0:01:55]} 11. Bd3 {[%emt 0:05:17]} Nf6 {[%emt 0:01:27]} 12. Re1 {[%emt 0:02:59]} h6 {[%emt 0:07:10]} 13. a3 {[%emt 0:11:16]} Be7 {[%emt 0:15:24]} 14. Re2 Qb8 15. Bd2 {[%emt 0:05:58]} Nc4 {[%emt 0:01:20]} 16. Be1 {[%emt 0:01:30]} g5 {[%emt 0:03:52]} 17. Bxc4 {[%emt 0:06:14]} Rxc4 {[%emt 0:01:45]} 18. Ne5 {[%emt 0:00:48]} Rc8 {[%emt 0:06:14]} 19. f3 {[%emt 0:00:30]} d6 {[%emt 0:00:30]} 20. Nd3 g4 {[%emt 0:01:08]} 21. fxg4 {[%emt 0:09:05]} Nxg4 {[%emt 0:00:53]} 22. h3 {[%emt 0:03:11]} Nf6 {[%emt 0:07:41]} 23. d5 {[%emt 0:01:23]} Rg8 {[%emt 0:00:30]} 24. Nf4 {[%emt 0:02:08]} e5 {[%emt 0:06:17]} 25. Nd3 {[%emt 0:00:15]} Rc4 {[%emt 0:07:04]} 26. Bf2 {[%emt 0:03:13]} a5 {[%emt 0:07:06]} 27. Qe1 {[%emt 0:06:22]} b4 {[%emt 0:09:22]} 28. axb4 {[%emt 0:00:17]} axb4 {[%emt 0:00:02]} 29. Na4 {[%emt 0:00:53]} Qc8 {[%emt 0:14:11]} 30. Kf1 {[%emt 0:04:06]} Nxd5 {[%emt 0:05:19]} 31. b3 {[%emt 0:09:27]} Rc2 {[%emt 0:01:25]} 32. exd5 {[%emt 0:00:49]} Bxd5 {[%emt 0:00:16]} 33. g4 {[%emt 0:02:02]} Rxg4 {[%emt 0:03:06]} 34. hxg4 {[%emt 0:01:45]} Qxg4 {[%emt 0:00:03]} 35. Rxc2 {[%emt 0:00:54]} Qh3+ {[%emt 0:00:56]} 36. Ke2 {[%emt 0:00:28]} Bg5 {[%emt 0:00:01]} 37. Nxb4 {[%emt 0:09:40]} Qf3+ {[%emt 0:00:53]} 38. Kf1 {[%emt 0:00:13]} Qg2+ {[%emt 0:00:02]} 39. Ke2 {[%emt 0:00:10]} Qf3+ {[%emt 0:00:31]} 40. Kf1 {[%emt 0:00:20]} Qh1+ {[%emt 0:01:01]} 41. Ke2 {[%emt 0:00:38]} Qf3+ {[%emt 0:00:25]} 42. Kf1 {[%emt 0:00:08]} Qg2+ {[%emt 0:00:34]} 1/2-1/2